fUST/lending_fUST_20240704
["ID","MTS","AMOUNT","RATE_DAILY","PERIOD"]
[331126998,1720096761518,-500.0,0.00013844,2]
[331126999,1720096761543,-500.0,0.00013844,2]
[331127000,1720096761567,-500.0,0.00013844,2]
[331127001,1720096761591,-500.0,0.00013844,2]
[331127002,1720096761613,-500.0,0.00013844,2]
[331127003,1720096761638,-500.0,0.00013844,2]
[331127004,1720096761661,-500.0,0.00013844,2]
[331127005,1720096761685,-511.4377051,0.00013844,2]
[331127006,1720096761708,-542.68,0.00013844,2]
[331127007,1720096761731,-500.0,0.00013844,2]
[331127008,1720096761755,-500.0,0.00013844,2]
[331127009,1720096761777,-500.0,0.00013844,2]
[331127010,1720096761801,-500.0,0.00013844,2]
[331127011,1720096761823,-500.0,0.00013844,2]
[331127012,1720096761845,-500.66358101,0.00013844,2]
[331127013,1720096761867,-837.98,0.00013844,2]
[331127014,1720096761890,-500.0,0.00013844,2]
[331127015,1720096761912,-500.0,0.00013844,2]
[331127016,1720096761934,-500.0,0.00013844,2]
[331127017,1720096761956,-500.0,0.00013844,2]
[331127018,1720096761978,-500.0,0.00013845,2]
[331127019,1720096762000,-525.71,0.00013845,2]
[331127020,1720096762022,-498.61353655,0.00013845,2]
[331127021,1720096762047,-500.0,0.00013845,2]
[331127022,1720096762070,-500.0,0.00013845,2]
[331127023,1720096762102,-500.0,0.00013847,2]
[331127024,1720096762134,-921.36,0.00013847,2]
[331127025,1720096762160,-500.0,0.00013847,2]
[331127026,1720096762192,-500.0,0.00013847,2]
[331127027,1720096762217,-500.0,0.00013847,2]
[331127028,1720096762240,-500.0,0.00013847,2]
[331127029,1720096762264,-3773.73,0.00013847,2]
[331127030,1720096762288,-908.25,0.00013847,2]
[331127031,1720096762312,-511.28,0.00013847,2]
[331127032,1720096762335,-552.34424351,0.00013847,2]
[331127033,1720096762359,-500.0,0.0001385,2]
[331127034,1720096762386,-500.0,0.0001385,2]
[331127035,1720096762408,-598.44742445,0.0001385,2]
[331127036,1720096762431,-500.0,0.0001385,2]
[331127037,1720096762453,-500.0,0.0001385,2]
[331127038,1720096762480,-678.88,0.0001385,2]
[331127039,1720096762504,-500.0,0.0001385,2]
[331127040,1720096762526,-500.0,0.0001385,2]
[331127041,1720096762549,-768.89,0.0001385,2]
[331127042,1720096762574,-500.0,0.0001385,2]
[331127043,1720096762596,-601.9722878,0.0001385,2]
[331127044,1720096762619,-516.32842148,0.0001385,2]
[331127045,1720096762646,-500.0,0.0001385,2]
[331127046,1720096762669,-753.53,0.0001385,2]
[331127047,1720096762693,-588.99,0.0001385,2]
[331127048,1720096762716,-500.0,0.0001385,2]
[331127049,1720096762738,-500.0,0.0001385,2]
[331127050,1720096762761,-500.0,0.0001385,2]
[331127051,1720096762783,-500.0,0.0001385,2]
[331127052,1720096762806,-500.0,0.0001385,2]
[331127053,1720096762828,-500.0,0.0001385,2]
[331127054,1720096762850,-500.0,0.0001385,2]
[331127055,1720096762872,-326.98427065,0.0001385,2]
[331127056,1720096762900,-500.0,0.0001385,2]
[331127057,1720096762923,-500.0,0.0001385,2]
[331127058,1720096762946,-500.0,0.0001385,2]
[331127059,1720096762969,-500.0,0.00013854,2]
[331127060,1720096762992,-500.0,0.00013854,2]
[331127061,1720096763016,-500.0,0.00013854,2]
[331127062,1720096763042,-500.0,0.00013854,2]
[331127063,1720096763064,-500.0,0.00013854,2]
[331127064,1720096763087,-500.0,0.00013854,2]
[331127065,1720096763111,-500.0,0.00013854,2]
[331127066,1720096763136,-500.0,0.00013854,2]
[331127067,1720096763160,-500.0,0.00013854,2]
[331127068,1720096763182,-500.0,0.00013854,2]
[331127069,1720096763206,-500.0,0.00013854,2]
[331127070,1720096763228,-500.0,0.00013854,2]
[331127071,1720096763250,-500.0,0.00013854,2]
[331127072,1720096763272,-500.0,0.00013854,2]
[331127073,1720096763295,-500.0,0.00013855,2]
[331127074,1720096763316,-500.0,0.00013855,2]
[331127075,1720096763338,-500.0,0.00013855,2]
[331127076,1720096763360,-500.0,0.00013855,2]
[331127077,1720096763384,-500.0,0.00013855,2]
[331127078,1720096763408,-500.0,0.00013855,2]
[331127079,1720096763430,-277.12456486,0.00013855,2]
[331127080,1720096763453,-500.0,0.00013855,2]
[331127081,1720096763476,-500.0,0.00013855,2]
[331127082,1720096763498,-500.0,0.00013855,2]
[331127083,1720096763522,-500.0,0.00013855,2]
[331127084,1720096763544,-509.37793686,0.00013855,2]
[331127085,1720096763567,-500.0,0.00013855,2]
[331127086,1720096763592,-168.0,0.00013855,2]
[331127087,1720096763616,-500.0,0.00013855,2]
[331127088,1720096763641,-500.0,0.00013855,2]
[331127089,1720096763664,-506.1045189,0.00013855,2]
[331127090,1720096763687,-500.0,0.00013855,2]
[331127091,1720096763710,-500.0,0.00013855,2]
[331127092,1720096763732,-544.22,0.00013855,2]
[331127093,1720096763754,-500.0,0.00013855,2]
[331127094,1720096763777,-500.0,0.00013855,2]
[331127095,1720096763801,-422.20368881,0.00013855,2]
[331127096,1720096763824,-500.0,0.00013855,2]
[331127097,1720096763848,-500.0,0.00013855,2]
[331127098,1720096763870,-500.0,0.00013855,2]
[331127099,1720096763896,-507.15675901,0.00013855,2]
[331127100,1720096763921,-500.0,0.00013855,2]
[331127101,1720096763945,-500.0,0.00013855,2]
[331127102,1720096763967,-500.0,0.00013855,2]
[331127103,1720096763991,-748.48,0.00013856,2]
[331127104,1720096764015,-11427.91,0.00013857,2]
[331127105,1720096764046,-606.42,0.00013857,2]
[331127106,1720096764069,-500.0,0.00013857,2]
[331127107,1720096764093,-500.0,0.00013857,2]
[331127108,1720096764117,-5509.69,0.00013857,2]
[331127109,1720096764146,-750.77,0.00013858,2]
[331127110,1720096764169,-917.79,0.00013858,2]
[331127111,1720096764298,-7169.66,0.00013858,2]
[331127112,1720096764328,-3460.68,0.00013858,2]
[331127113,1720096764353,-13334.5167692,0.0001386,2]
[331127114,1720096764378,-500.0,0.0001387,2]
[331127115,1720096764404,-620.98,0.00013952,2]
[331127116,1720096764426,-230.98268049,0.00014,2]
[331127117,1720096765489,500.0,0.00013844,2]
[331127118,1720096766696,500.0,0.00013844,2]
[331127119,1720096767789,500.0,0.00013843,2]
[331127120,1720096777114,1105.78,0.00013843,2]
[331127121,1720096778664,1067.83,0.0001387,2]
[331127122,1720096780512,500.0,0.00013844,2]
[331127123,1720096780710,500.0,0.00013843,2]
[331127124,1720096780769,978.85,0.00013857,2]
[331127125,1720096785267,500.0,0.00013854,2]
[331127126,1720096786507,813.97014078,0.00013843,2]
[331127284,1720097440118,-378.33321948,0.00013699,2]
[331127285,1720097440131,-121.66678052,0.00013699,2]
[331127287,1720097440142,-175.32349875,0.00013746,2]
[331127289,1720097440152,-300.0,0.00013833,2]
[331127291,1720097440162,-300.0,0.00013833,2]
[331127293,1720097440176,-12001.0650923,0.00013834,2]
[331127295,1720097440187,-12001.0650923,0.00013837,2]
[331127297,1720097440198,-5431.12099059,0.00013839,2]
[331127298,1720097440209,-152.76544287,0.0001384,2]
[331127299,1720097440219,-1064.27,0.00013842,2]
[331127300,1720097440230,-500.0,0.00013842,2]
[331127301,1720097440241,-504.18635146,0.00013842,2]
[331127302,1720097440252,-500.0,0.00013842,2]
[331127303,1720097440261,-1450.82,0.00013842,2]
[331127304,1720097440274,-500.0,0.00013842,2]
[331127305,1720097440284,-500.0,0.00013842,2]
[331127306,1720097440294,-500.0,0.00013842,2]
[331127307,1720097440304,-922.7,0.00013842,2]
[331127308,1720097440314,-500.0,0.00013842,2]
[331127309,1720097440324,-1241.42,0.00013842,2]
[331127310,1720097440336,-500.0,0.00013842,2]
[331127311,1720097440346,-500.0,0.00013842,2]
[331127312,1720097440357,-500.0,0.00013842,2]
[331127313,1720097440367,-605.20546651,0.00013842,2]
[331127315,1720097440377,-500.0,0.00013842,2]
[331127316,1720097440387,-500.0,0.00013842,2]
[331127317,1720097440397,-500.0,0.00013842,2]
[331127318,1720097440408,-637.97107105,0.00013842,2]
[331127319,1720097440419,-500.0,0.00013842,2]
[331127320,1720097440430,-500.0,0.00013842,2]
[331127321,1720097440441,-852.82,0.00013842,2]
[331127322,1720097440451,-500.0,0.00013842,2]
[331127323,1720097440460,-501.67076741,0.00013842,2]
[331127324,1720097440470,-508.09458908,0.00013842,2]
[331127325,1720097440480,-500.0,0.00013842,2]
[331127326,1720097440489,-500.0,0.00013842,2]
[331127328,1720097440499,-500.0,0.00013842,2]
[331127330,1720097440509,-500.0,0.00013842,2]
[331127331,1720097440519,-500.0,0.00013842,2]
[331127332,1720097440529,-500.0,0.00013842,2]
[331127333,1720097440539,-500.0,0.00013842,2]
[331127334,1720097440549,-1119.9,0.00013842,2]
[331127335,1720097440559,-739.13,0.00013842,2]
[331127336,1720097440568,-500.0,0.00013842,2]
[331127337,1720097440578,-1033.83,0.00013842,2]
[331127338,1720097440588,-732.68,0.00013842,2]
[331127339,1720097440598,-4789.06,0.00013842,2]
[331127340,1720097440608,-500.0,0.00013842,2]
[331127341,1720097440618,-500.0,0.00013842,2]
[331127342,1720097440628,-500.0,0.00013842,2]
[331127343,1720097440638,-505.50900849,0.00013842,2]
[331127344,1720097440648,-548.15,0.00013842,2]
[331127345,1720097440658,-500.0,0.00013842,2]
[331127346,1720097440669,-846.42,0.00013842,2]
[331127347,1720097440679,-500.0,0.00013842,2]
[331127348,1720097440689,-500.0,0.00013842,2]
[331127349,1720097440699,-500.0,0.00013842,2]
[331127350,1720097440709,-500.0,0.00013842,2]
[331127351,1720097440718,-500.0,0.00013842,2]
[331127352,1720097440728,-500.0,0.00013842,2]
[331127353,1720097440737,-509.66017468,0.00013842,2]
[331127354,1720097440748,-500.0,0.00013842,2]
[331127355,1720097440758,-500.0,0.00013842,2]
[331127356,1720097440767,-500.0,0.00013842,2]
[331127357,1720097440777,-500.0,0.00013842,2]
[331127358,1720097440787,-506.81045856,0.00013842,2]
[331127359,1720097440797,-500.0,0.00013842,2]
[331127360,1720097440812,-655.26,0.00013842,2]
[331127361,1720097440822,-500.0,0.00013842,2]
[331127362,1720097440832,-2660.22,0.00013842,2]
[331127363,1720097440842,-500.0,0.00013842,2]
[331127365,1720097440852,-500.0,0.00013842,2]
[331127366,1720097440862,-504.09542715,0.00013842,2]
[331127367,1720097440872,-500.0,0.00013842,2]
[331127368,1720097440882,-500.0,0.00013842,2]
[331127369,1720097440892,-927.32,0.00013842,2]
[331127370,1720097440904,-500.0,0.00013842,2]
[331127371,1720097440915,-500.0,0.00013842,2]
[331127372,1720097440928,-514.55998148,0.00013842,2]
[331127373,1720097440938,-13895.87,0.00013842,2]
[331127374,1720097440949,-553.63665553,0.00013842,2]
[331127375,1720097440960,-500.0,0.00013843,2]
[331127376,1720097440969,-500.0,0.00013843,2]
[331127377,1720097440979,-500.0,0.00013843,2]
[331127378,1720097440988,-500.0,0.00013843,2]
[331127379,1720097440999,-500.0,0.00013843,2]
[331127380,1720097441008,-208.91728727,0.00013843,2]
[331127381,1720097441020,-189.02032087,0.00013843,2]
[331127382,1720097441030,-500.0,0.00013843,2]
[331127383,1720097441039,-1608.62,0.00013843,2]
[331127384,1720097441049,-500.0,0.00013843,2]
[331127385,1720097441059,-2317.93,0.00013843,2]
[331127386,1720097441068,-500.0,0.00013843,2]
[331127387,1720097441077,-500.0,0.00013843,2]
[331127388,1720097441087,-824.08,0.00013843,2]
[331127389,1720097441096,-500.0,0.00013843,2]
[331127390,1720097441106,-500.0,0.00013843,2]
[331127391,1720097441115,-1887.51,0.00013843,2]
[331127392,1720097441125,-500.0,0.00013843,2]
[331127393,1720097441135,-2518.25,0.00013843,2]
[331127394,1720097441144,-1336.89,0.00013843,2]
[331127395,1720097441154,-500.0,0.00013843,2]
[331127397,1720097441163,-500.0,0.00013843,2]
[331127399,1720097441175,-1114.3,0.00013843,2]
[331127401,1720097441185,-722.8,0.00013843,2]
[331127403,1720097441195,-500.0,0.00013843,2]
[331127404,1720097441205,-4640.63,0.00013843,2]
[331127405,1720097441214,-500.0,0.00013843,2]
[331127406,1720097441224,-500.0,0.00013843,2]
[331127407,1720097441233,-500.0,0.00013844,2]
[331127408,1720097441248,-500.0,0.00013844,2]
[331127409,1720097441258,-500.0,0.00013844,2]
[331127410,1720097441268,-500.0,0.00013844,2]
[331127411,1720097441279,-500.0,0.00013844,2]
[331127412,1720097441290,-500.0,0.00013844,2]
[331127413,1720097441299,-500.0,0.00013844,2]
[331127414,1720097441309,-500.0,0.00013844,2]
[331127415,1720097441322,-500.0,0.00013844,2]
[331127416,1720097441333,-500.0,0.00013844,2]
[331127417,1720097441343,-501.47869092,0.00013844,2]
[331127418,1720097441353,-500.0,0.00013844,2]
[331127419,1720097441364,-500.0,0.00013844,2]
[331127420,1720097441373,-500.0,0.00013844,2]
[331127421,1720097441383,-500.0,0.00013844,2]
[331127422,1720097441392,-500.0,0.00013844,2]
[331127423,1720097441402,-500.0,0.00013844,2]
[331127424,1720097441413,-500.0,0.00013844,2]
[331127425,1720097441424,-500.0,0.00013844,2]
[331127426,1720097441434,-500.0,0.00013844,2]
[331127427,1720097441444,-500.0,0.00013844,2]
[331127428,1720097441454,-500.0,0.00013844,2]
[331127429,1720097441463,-500.0,0.00013844,2]
[331127430,1720097441473,-500.0,0.00013844,2]
[331127431,1720097441483,-500.0,0.00013844,2]
[331127432,1720097441493,-528.3593317,0.00013844,2]
[331127433,1720097441502,-500.0,0.00013844,2]
[331127434,1720097441512,-511.42327168,0.00013844,2]
[331127435,1720097441521,-460.39495795,0.00013844,2]
[331127436,1720097441531,-681.42,0.00013844,2]
[331127437,1720097441541,-637.43450495,0.00013844,2]
[331127438,1720097441550,-500.0,0.00013844,2]
[331127439,1720097441560,-500.0,0.00013844,2]
[331127440,1720097441569,-500.0,0.00013844,2]
[331127441,1720097441579,-500.0,0.00013844,2]
[331127442,1720097441588,-500.0,0.00013844,2]
[331127443,1720097441597,-500.0,0.00013844,2]
[331127444,1720097441607,-500.0,0.00013844,2]
[331127445,1720097441616,-500.0,0.00013844,2]
[331127446,1720097441626,-502.60484621,0.00013844,2]
[331127447,1720097441635,-512.72904968,0.00013844,2]
[331127448,1720097441644,-500.0,0.00013844,2]
[331127449,1720097441654,-434.13915917,0.00013844,2]
[331127450,1720097441663,-500.0,0.00013844,2]
[331127451,1720097441678,-500.0,0.00013844,2]
[331127452,1720097441687,-500.0,0.00013844,2]
[331127453,1720097441696,-500.0,0.00013844,2]
[331127454,1720097441706,-419.68214567,0.00013844,2]
[331127455,1720097441716,-500.0,0.00013844,2]
[331127456,1720097441725,-288.63369975,0.00013844,2]
[331127457,1720097441736,-418.19524978,0.00013844,2]
[331127458,1720097441746,-500.0,0.00013844,2]
[331127459,1720097441756,-500.0,0.00013844,2]
[331127460,1720097441767,-500.0,0.00013844,2]
[331127461,1720097441777,-500.0,0.00013844,2]
[331127462,1720097441788,-500.0,0.00013844,2]
[331127463,1720097441798,-500.0,0.00013844,2]
[331127464,1720097441808,-500.0,0.00013844,2]
[331127465,1720097441819,-500.0,0.00013844,2]
[331127466,1720097441830,-500.0,0.00013844,2]
[331127467,1720097441840,-500.0,0.00013844,2]
[331127468,1720097441850,-11493.78,0.00013845,2]
[331127469,1720097441860,-609.92,0.00013845,2]
[331127470,1720097441871,-500.0,0.00013845,2]
[331127471,1720097441880,-500.0,0.00013846,2]
[331127472,1720097441890,-9761.47,0.00013846,2]
[331127473,1720097441899,-532.08,0.00013846,2]
[331127474,1720097441910,-500.0,0.00013846,2]
[331127475,1720097441924,-973.25,0.00013846,2]
[331127476,1720097441934,-500.0,0.00013846,2]
[331127477,1720097441944,-601.3,0.00013846,2]
[331127478,1720097441953,-500.0,0.00013846,2]
[331127479,1720097441963,-500.0,0.00013847,2]
[331127480,1720097441973,-503.8,0.00013847,2]
[331127481,1720097441984,-500.0,0.00013847,2]
[331127482,1720097441994,-500.0,0.00013847,2]
[331127483,1720097442004,-500.0,0.00013847,2]
[331127484,1720097442014,-500.0,0.00013847,2]
[331127485,1720097442024,-500.0,0.00013847,2]
[331127486,1720097442034,-500.0,0.00013847,2]
[331127487,1720097442175,-500.0,0.0001385,2]
[331127488,1720097442186,-500.0,0.0001385,2]
[331127489,1720097442195,-5310.56,0.0001385,2]
[331127490,1720097442205,-1033.2,0.0001385,2]
[331127491,1720097442214,-500.0,0.00013854,2]
[331127492,1720097442224,-500.0,0.00013854,2]
[331127493,1720097442233,-500.0,0.00013854,2]
[331127494,1720097442245,-500.0,0.00013854,2]
[331127495,1720097442254,-650.59,0.00013854,2]
[331127496,1720097442265,-500.0,0.00013854,2]
[331127497,1720097442278,-500.0,0.00013854,2]
[331127498,1720097442288,-736.85,0.00013854,2]
[331127499,1720097442298,-500.0,0.00013854,2]
[331127500,1720097442307,-500.0,0.00013854,2]
[331127501,1720097442317,-500.0,0.00013854,2]
[331127502,1720097442328,-500.0,0.00013854,2]
[331127503,1720097442338,-500.0,0.00013854,2]
[331127504,1720097442347,-516.17711193,0.00013854,2]
[331127505,1720097442357,-757.88,0.00013854,2]
[331127506,1720097442367,-500.0,0.00013854,2]
[331127507,1720097442375,-592.39,0.00013854,2]
[331127508,1720097442385,-500.0,0.00013854,2]
[331127509,1720097442394,-500.0,0.00013854,2]
[331127510,1720097442404,-500.0,0.00013854,2]
[331127511,1720097442413,-500.0,0.00013854,2]
[331127512,1720097442426,-504.50360655,0.00013854,2]
[331127513,1720097442435,-500.0,0.00013854,2]
[331127514,1720097442445,-500.0,0.00013854,2]
[331127515,1720097442455,-500.0,0.00013854,2]
[331127516,1720097442466,-209.93455945,0.00013854,2]
[331127517,1720097442475,-500.0,0.00013854,2]
[331127518,1720097442484,-500.0,0.00013854,2]
[331127519,1720097442494,-500.0,0.00013854,2]
[331127520,1720097442503,-7263.26804888,0.00013856,2]
[331127521,1720097442513,-500.0,0.00013856,2]
[331127522,1720097442522,-3993.59,0.00013856,2]
[331127523,1720097442531,-870.41,0.00013856,2]
[331127524,1720097442540,-719.48,0.00013857,2]
[331127525,1720097442549,-879.55,0.00013857,2]
[331127526,1720097442558,-7210.99,0.00013857,2]
[331127527,1720097442568,-3480.33,0.00013857,2]
[331127528,1720097442577,-601.3,0.0001387,2]
[331127529,1720097442587,-12001.0650923,0.0001389,2]
[331127530,1720097442597,-175.32349874,0.00014019,2]
[331127531,1720097442606,-12001.0650923,0.00014106,2]
[331127532,1720097442616,-12001.0650923,0.00014107,2]
[331127533,1720097442627,-12001.0650923,0.00014109,2]
[331127534,1720097442637,-1064.27,0.00014116,2]
[331127535,1720097442647,-500.0,0.00014116,2]
[331127536,1720097442656,-500.0,0.00014116,2]
[331127537,1720097442667,-1450.82,0.00014116,2]
[331127538,1720097442677,-500.0,0.00014116,2]
[331127539,1720097442686,-500.0,0.00014116,2]
[331127540,1720097442696,-428.44142637,0.00014116,2]
[331127541,1720097442705,-509.21905429,0.00014116,2]
[331127542,1720097442715,-922.7,0.00014116,2]
[331127543,1720097442724,-1241.42,0.00014116,2]
[331127544,1720097442734,-500.0,0.00014116,2]
[331127545,1720097442744,-500.0,0.00014116,2]
[331127546,1720097442753,-500.0,0.00014116,2]
[331127547,1720097442762,-500.0,0.00014116,2]
[331127548,1720097442772,-500.0,0.00014116,2]
[331127549,1720097442782,-852.82,0.00014116,2]
[331127550,1720097442791,-500.0,0.00014116,2]
[331127551,1720097442802,-500.0,0.00014116,2]
[331127552,1720097442812,-410.53797057,0.00014116,2]
[331127553,1720097442822,-500.0,0.00014116,2]
[331127554,1720097442832,-500.0,0.00014116,2]
[331127555,1720097442842,-1119.9,0.00014116,2]
[331127556,1720097442851,-739.13,0.00014116,2]
[331127557,1720097442861,-500.0,0.00014116,2]
[331127558,1720097442871,-1033.83,0.00014116,2]
[331127559,1720097442881,-732.68,0.00014116,2]
[331127560,1720097442891,-4789.06,0.00014116,2]
[331127561,1720097442900,-500.0,0.00014116,2]
[331127562,1720097442911,-500.0,0.00014116,2]
[331127563,1720097442928,-500.0,0.00014116,2]
[331127564,1720097442937,-548.15,0.00014116,2]
[331127565,1720097442946,-500.0,0.00014116,2]
[331127566,1720097442955,-846.42,0.00014116,2]
[331127567,1720097442964,-500.0,0.00014116,2]
[331127568,1720097442972,-500.0,0.00014116,2]
[331127569,1720097442982,-447.10614073,0.00014116,2]
[331127570,1720097442991,-500.0,0.00014116,2]
[331127571,1720097443000,-500.0,0.00014116,2]
[331127572,1720097443008,-500.0,0.00014116,2]
[331127573,1720097443017,-500.0,0.00014116,2]
[331127574,1720097443026,-655.26,0.00014116,2]
[331127575,1720097443035,-500.0,0.00014116,2]
[331127576,1720097443044,-2660.22,0.00014116,2]
[331127577,1720097443053,-500.0,0.00014116,2]
[331127578,1720097443062,-500.0,0.00014116,2]
[331127579,1720097443072,-927.32,0.00014116,2]
[331127580,1720097443082,-500.0,0.00014116,2]
[331127581,1720097443091,-13895.87,0.00014116,2]
[331127582,1720097443100,-500.0,0.00014117,2]
[331127583,1720097443110,-500.0,0.00014117,2]
[331127585,1720097443120,-500.0,0.00014117,2]
[331127587,1720097443129,-500.0,0.00014117,2]
[331127589,1720097443139,-500.0,0.00014117,2]
[331127591,1720097443149,-500.0,0.00014117,2]
[331127593,1720097443158,-500.0,0.00014117,2]
[331127596,1720097443171,-500.0,0.00014117,2]
[331127598,1720097443181,-634.92190517,0.00014117,2]
[331127600,1720097443190,-500.0,0.00014117,2]
[331127602,1720097443199,-500.0,0.00014117,2]
[331127603,1720097443209,-1608.62,0.00014117,2]
[331127604,1720097443218,-500.0,0.00014117,2]
[331127605,1720097443227,-2317.93,0.00014117,2]
[331127606,1720097443237,-577.87447147,0.00014117,2]
[331127607,1720097443251,-500.0,0.00014117,2]
[331127608,1720097443261,-824.08,0.00014117,2]
[331127610,1720097443271,-500.0,0.00014117,2]
[331127612,1720097443280,-1887.51,0.00014117,2]
[331127614,1720097443291,-601.3,0.00014117,2]
[331127616,1720097443301,-500.0,0.00014117,2]
[331127618,1720097443310,-2518.25,0.00014117,2]
[331127620,1720097443320,-1336.89,0.00014117,2]
[331127622,1720097443330,-500.0,0.00014117,2]
[331127623,1720097443339,-1114.3,0.00014117,2]
[331127624,1720097443349,-722.8,0.00014117,2]
[331127625,1720097443358,-500.0,0.00014117,2]
[331127626,1720097443368,-4640.63,0.00014117,2]
[331127628,1720097443378,-500.0,0.00014117,2]
[331127630,1720097443387,-500.0,0.00014117,2]
[331127631,1720097443396,-12001.0650923,0.00014118,2]
[331127632,1720097443406,-774.07,0.00014118,2]
[331127633,1720097443417,-500.0,0.00014118,2]
[331127634,1720097443426,-675.77,0.00014118,2]
[331127635,1720097443436,-500.0,0.00014118,2]
[331127636,1720097443446,-500.0,0.00014118,2]
[331127637,1720097443455,-422.97963733,0.00014118,2]
[331127638,1720097443464,-490.82196108,0.00014118,2]
[331127639,1720097443473,-500.0,0.00014118,2]
[331127640,1720097443483,-500.0,0.00014118,2]
[331127641,1720097443493,-500.0,0.00014118,2]
[331127642,1720097443502,-500.0,0.00014118,2]
[331127643,1720097443511,-507.55288444,0.00014118,2]
[331127644,1720097443520,-500.0,0.00014118,2]
[331127645,1720097443530,-500.0,0.00014118,2]
[331127646,1720097443539,-513.55992585,0.00014118,2]
[331127647,1720097443548,-500.0,0.00014118,2]
[331127648,1720097443557,-537.25267907,0.00014118,2]
[331127649,1720097443567,-500.0,0.00014118,2]
[331127650,1720097443576,-524.86300531,0.00014118,2]
[331127651,1720097443586,-500.0,0.00014118,2]
[331127652,1720097443595,-507.48818672,0.00014118,2]
[331127653,1720097443604,-500.0,0.00014118,2]
[331127654,1720097443614,-500.0,0.00014118,2]
[331127656,1720097443623,-500.0,0.00014118,2]
[331127657,1720097443632,-500.0,0.00014118,2]
[331127658,1720097443641,-500.0,0.00014118,2]
[331127659,1720097443650,-500.0,0.00014118,2]
[331127660,1720097443660,-500.0,0.00014118,2]
[331127661,1720097443670,-646.68584597,0.00014118,2]
[331127662,1720097443679,-500.0,0.00014118,2]
[331127663,1720097443688,-500.0,0.00014118,2]
[331127664,1720097443698,-500.0,0.00014118,2]
[331127665,1720097443707,-500.0,0.00014118,2]
[331127666,1720097443716,-500.0,0.00014118,2]
[331127667,1720097443726,-500.0,0.00014118,2]
[331127668,1720097443735,-561.2071717,0.00014118,2]
[331127669,1720097443745,-500.0,0.00014118,2]
[331127670,1720097443755,-681.42,0.00014118,2]
[331127671,1720097443765,-500.0,0.00014118,2]
[331127672,1720097443774,-500.0,0.00014118,2]
[331127673,1720097443783,-500.0,0.00014118,2]
[331127674,1720097443793,-500.0,0.00014118,2]
[331127675,1720097443802,-500.0,0.00014118,2]
[331127676,1720097443812,-500.0,0.00014118,2]
[331127677,1720097443823,-500.0,0.00014118,2]
[331127678,1720097443833,-500.0,0.00014118,2]
[331127679,1720097443843,-228.33099257,0.00014118,2]
[331127680,1720097443853,-500.0,0.00014118,2]
[331127681,1720097443862,-174.55497326,0.00014118,2]
[331127682,1720097443872,-500.0,0.00014118,2]
[331127683,1720097443882,-500.0,0.00014118,2]
[331127684,1720097443891,-500.0,0.00014118,2]
[331127685,1720097443901,-500.0,0.00014118,2]
[331127686,1720097443911,-500.0,0.00014118,2]
[331127687,1720097443922,-198.05147142,0.00014118,2]
[331127688,1720097443931,-500.0,0.00014118,2]